[Event "MCR rapid mládeže 2023 U16"]
[Site "Harachov, Czech Republic"]
[Date "2023.09.09"]
[Round "5.31"]
[White "Velim, Vojtech"]
[Black "Strihavka, Petr"]
[Result "1-0"]
[TimeControl "20min+5s/move"]
[WhiteElo "1799"]
[BlackElo "1205"]

1. Nf3 {[%clk 00:20:01]} {[%emt 00:00:08]} Nc6 {[%clk 00:20:09]} {[%emt
00:00:02]} 2. d4 {[%clk 00:20:03]} {[%emt 00:00:04]} d5 {[%clk 00:20:12]}
{[%emt 00:00:01]} 3. c4 {[%clk 00:20:05]} {[%emt 00:00:03]} e6 {[%clk
00:20:08]} {[%emt 00:00:09]} 4. Nc3 {[%clk 00:20:09]} {[%emt 00:00:01]} Nf6
{[%clk 00:20:11]} {[%emt 00:00:02]} 5. Bg5 {[%clk 00:20:11]} {[%emt 00:00:03]}
Bb4 {[%clk 00:20:09]} {[%emt 00:00:07]} 6. e3 {[%clk 00:20:14]} {[%emt
00:00:02]} O-O {[%clk 00:20:00]} {[%emt 00:00:15]} 7. a3 {[%clk 00:20:14]}
{[%emt 00:00:05]} Be7 {[%clk 00:19:42]} {[%emt 00:00:22]} 8. Qc2 {[%clk
00:20:08]} {[%emt 00:00:11]} h6 {[%clk 00:19:42]} {[%emt 00:00:05]} 9. Bf4
{[%clk 00:20:05]} {[%emt 00:00:09]} b6 {[%clk 00:19:09]} {[%emt 00:00:37]} 10.
cxd5 {[%clk 00:20:00]} {[%emt 00:00:10]} exd5 {[%clk 00:19:02]} {[%emt
00:00:12]} 11. Nb5 {[%clk 00:19:22]} {[%emt 00:00:42]} Qd7 {[%clk 00:18:17]}
{[%emt 00:00:51]} 12. Nxc7 {[%clk 00:19:06]} {[%emt 00:00:20]} Rb8 {[%clk
00:18:14]} {[%emt 00:00:08]} 13. Bb5 {[%clk 00:18:59]} {[%emt 00:00:13]} Bb7
{[%clk 00:17:54]} {[%emt 00:00:25]} 14. Ne5 {[%clk 00:18:14]} {[%emt 00:00:50]}
Qxc7 {[%clk 00:17:23]} {[%emt 00:00:37]} 15. Nxc6 {[%clk 00:18:13]} {[%emt
00:00:05]} Bd6 {[%clk 00:17:22]} {[%emt 00:00:07]} 16. Bxd6 {[%clk 00:18:10]}
{[%emt 00:00:09]} Qxd6 {[%clk 00:17:12]} {[%emt 00:00:13]} 17. Nxb8 {[%clk
00:18:06]} {[%emt 00:00:10]} Rxb8 {[%clk 00:16:53]} {[%emt 00:00:25]} 18. Bd3
{[%clk 00:17:07]} {[%emt 00:01:02]} Rc8 {[%clk 00:16:49]} {[%emt 00:00:09]} 19.
Qd2 {[%clk 00:17:04]} {[%emt 00:00:09]} Ng4 {[%clk 00:16:45]} {[%emt 00:00:09]}
20. h3 {[%clk 00:16:43]} {[%emt 00:00:26]} Nf6 {[%clk 00:16:41]} {[%emt
00:00:08]} 21. O-O {[%clk 00:16:30]} {[%emt 00:00:17]} Ne4 {[%clk 00:16:04]}
{[%emt 00:00:45]} 22. Bxe4 {[%clk 00:16:26]} {[%emt 00:00:08]} dxe4 {[%clk
00:16:06]} {[%emt 00:00:03]} 23. Rac1 {[%clk 00:16:29]} {[%emt 00:00:01]} Re8
{[%clk 00:15:53]} {[%emt 00:00:18]} 24. Qe2 {[%clk 00:15:31]} {[%emt 00:01:03]}
Re6 {[%clk 00:15:14]} {[%emt 00:00:43]} 25. Rc3 {[%clk 00:15:06]} {[%emt
00:00:32]} Rg6 {[%clk 00:14:59]} {[%emt 00:00:19]} 26. Rfc1 {[%clk 00:14:37]}
{[%emt 00:00:34]} Qe6 {[%clk 00:14:41]} {[%emt 00:00:20]} 27. Kh1 {[%clk
00:14:26]} {[%emt 00:00:19]} Bd5 {[%clk 00:12:35]} {[%emt 00:02:11]} 28. Qa6
{[%clk 00:13:56]} {[%emt 00:00:35]} Qf6 {[%clk 00:12:11]} {[%emt 00:00:28]} 29.
Qe2 {[%clk 00:11:42]} {[%emt 00:02:18]} Qg5 {[%clk 00:12:03]} {[%emt 00:00:14]}
30. Qg4 {[%clk 00:11:35]} {[%emt 00:00:13]} Qf6 {[%clk 00:11:35]} {[%emt
00:00:33]} 31. Qf4 {[%clk 00:11:28]} {[%emt 00:00:12]} Qe6 {[%clk 00:10:34]}
{[%emt 00:01:05]} 32. Qe5 {[%clk 00:10:25]} {[%emt 00:01:08]} Qxe5 {[%clk
00:10:35]} {[%emt 00:00:05]} 33. dxe5 {[%clk 00:10:28]} {[%emt 00:00:01]} Re6
{[%clk 00:10:31]} {[%emt 00:00:08]} 34. Rc8+ {[%clk 00:10:10]} {[%emt
00:00:23]} Kh7 {[%clk 00:10:31]} {[%emt 00:00:04]} 35. R8c7 {[%clk 00:09:57]}
{[%emt 00:00:19]} Rxe5 {[%clk 00:10:11]} {[%emt 00:00:26]} 36. Rxa7 {[%clk
00:09:55]} {[%emt 00:00:05]} Rf5 {[%clk 00:09:51]} {[%emt 00:00:25]} 37. Kg1
{[%clk 00:09:52]} {[%emt 00:00:10]} Rg5 {[%clk 00:09:53]} {[%emt 00:00:04]} 38.
Ra6 {[%clk 00:09:41]} {[%emt 00:00:15]} Be6 {[%clk 00:09:51]} {[%emt 00:00:03]}
39. Kh2 {[%clk 00:09:13]} {[%emt 00:00:36]} Rf5 {[%clk 00:09:53]} {[%emt
00:00:04]} 40. Rc2 {[%clk 00:09:12]} {[%emt 00:00:06]} Rb5 {[%clk 00:09:51]}
{[%emt 00:00:07]} 41. b4 {[%clk 00:09:00]} {[%emt 00:00:16]} Bd5 {[%clk
00:09:35]} {[%emt 00:00:21]} 42. Rb2 {[%clk 00:08:56]} {[%emt 00:00:10]} Kg6
{[%clk 00:09:31]} {[%emt 00:00:08]} 43. a4 {[%emt 00:00:27]} 1-0

[Event "MCR rapid mládeže 2023 U16"]
[Site "Harachov, Czech Republic"]
[Date "2023.09.09"]
[Round "5.32"]
[White "Vo, Daniel"]
[Black "Kozusnik, Jan"]
[Result "1-0"]
[TimeControl "20min+5s/move"]
[WhiteElo "1445"]
[BlackElo "1399"]

1. e4 {[%clk 00:20:08]} {[%emt 00:00:01]} d5 {[%clk 00:20:10]} {[%emt
00:00:01]} 2. exd5 {[%clk 00:20:12]} {[%emt 00:00:01]} Nf6 {[%clk 00:20:14]}
{[%emt 00:00:01]} 3. d4 {[%clk 00:20:09]} {[%emt 00:00:08]} Nxd5 {[%clk
00:20:17]} {[%emt 00:00:02]} 4. c4 {[%clk 00:20:11]} {[%emt 00:00:02]} Nb6
{[%clk 00:20:20]} {[%emt 00:00:03]} 5. Nc3 {[%clk 00:20:11]} {[%emt 00:00:04]}
Bf5 {[%clk 00:19:58]} {[%emt 00:00:27]} 6. Nf3 {[%clk 00:19:50]} {[%emt
00:00:25]} e6 {[%clk 00:19:48]} {[%emt 00:00:16]} 7. Bf4 {[%clk 00:19:47]}
{[%emt 00:00:08]} c5 {[%clk 00:19:12]} {[%emt 00:00:42]} 8. Be2 {[%clk
00:19:23]} {[%emt 00:00:27]} Be7 {[%clk 00:18:30]} {[%emt 00:00:48]} 9. O-O
{[%clk 00:18:51]} {[%emt 00:00:36]} O-O {[%clk 00:18:31]} {[%emt 00:00:05]} 10.
Qd2 {[%clk 00:17:45]} {[%emt 00:01:09]} Nc6 {[%clk 00:17:36]} {[%emt 00:01:02]}
11. d5 {[%clk 00:15:36]} {[%emt 00:02:13]} exd5 {[%clk 00:15:46]} {[%emt
00:01:55]} 12. cxd5 {[%clk 00:15:37]} {[%emt 00:00:05]} Nb4 {[%clk 00:15:11]}
{[%emt 00:00:39]} 13. d6 {[%clk 00:14:58]} {[%emt 00:00:44]} Bf6 {[%clk
00:14:49]} {[%emt 00:00:27]} 14. a3 {[%clk 00:13:35]} {[%emt 00:01:29]} Bxc3
{[%clk 00:14:27]} {[%emt 00:00:27]} 15. bxc3 {[%clk 00:13:20]} {[%emt
00:00:18]} N4d5 {[%clk 00:13:57]} {[%emt 00:00:33]} 16. Bg3 {[%clk 00:12:53]}
{[%emt 00:00:35]} Qd7 {[%clk 00:11:43]} {[%emt 00:02:15]} 17. c4 {[%clk
00:12:33]} {[%emt 00:00:29]} Nf6 {[%clk 00:11:28]} {[%emt 00:00:20]} 18. Ne5
{[%clk 00:12:19]} {[%emt 00:00:19]} Qe6 {[%clk 00:10:45]} {[%emt 00:00:48]} 19.
Rfe1 {[%clk 00:11:28]} {[%emt 00:00:46]} Ne4 {[%clk 00:10:27]} {[%emt
00:00:34]} 20. Qb2 {[%clk 00:09:36]} {[%emt 00:01:56]} Nxg3 {[%clk 00:09:53]}
{[%emt 00:00:39]} 21. hxg3 {[%clk 00:09:31]} {[%emt 00:00:10]} Qxd6 {[%clk
00:09:30]} {[%emt 00:00:29]} 22. Rad1 {[%clk 00:09:18]} {[%emt 00:00:17]} Qe6
{[%clk 00:08:52]} {[%emt 00:00:39]} 23. Bf3 {[%clk 00:09:13]} {[%emt 00:00:13]}
Rfe8 {[%clk 00:07:45]} {[%emt 00:01:14]} 24. Nd3 {[%clk 00:08:38]} {[%emt
00:00:39]} Qxc4 {[%clk 00:07:28]} {[%emt 00:00:23]} 25. Ne5 {[%clk 00:08:12]}
{[%emt 00:00:29]} Qe6 {[%clk 00:05:42]} {[%emt 00:01:49]} 26. Qc1 {[%clk
00:07:37]} {[%emt 00:00:43]} Rad8 {[%clk 00:03:12]} {[%emt 00:02:35]} 27. Rxd8
{[%clk 00:07:25]} {[%emt 00:00:18]} Rxd8 {[%clk 00:03:00]} {[%emt 00:00:16]} 28.
Nc6 {[%clk 00:07:19]} {[%emt 00:00:11]} Qf6 {[%clk 00:00:07]} {[%emt 00:02:49]}
29. Nxd8 Qxd8 {[%clk 00:00:11]} 30. Qxc5 {[%clk 00:07:17]} {[%emt 00:00:05]}
Bc8 {[%clk 00:00:07]} {[%emt 00:00:10]} 31. Qe7 {[%clk 00:06:44]} {[%emt
00:00:38]} Qxe7 {[%clk 00:00:06]} {[%emt 00:00:06]} 32. Rxe7 {[%clk 00:06:48]}
{[%emt 00:00:01]} Kf8 {[%clk 00:00:10]} {[%emt 00:00:02]} 33. Rc7 {[%clk
00:06:46]} {[%emt 00:00:05]} g6 {[%clk 00:00:06]} {[%emt 00:00:10]} 34. Bxb7
{[%clk 00:06:47]} {[%emt 00:00:03]} Bxb7 {[%emt 00:00:07]} 35. Rxb7 {[%clk
00:06:48]} {[%emt 00:00:03]} Ke8 {[%clk 00:00:06]} {[%emt 00:00:05]} 36. Rxa7
{[%emt 00:00:05]} Nc4 37. Ra8+ {[%clk 00:06:54]} Kd7 {[%clk 00:00:10]} {[%emt
00:00:03]} 38. a4 {[%clk 00:06:58]} {[%emt 00:00:01]} h5 {[%clk 00:00:06]}
{[%emt 00:00:09]} 39. Ra7+ {[%clk 00:07:02]} {[%emt 00:00:02]} Ke6 {[%clk
00:00:09]} {[%emt 00:00:01]} 40. a5 {[%clk 00:07:06]} {[%emt 00:00:02]} f5
{[%clk 00:00:06]} {[%emt 00:00:08]} 41. a6 {[%clk 00:07:08]} {[%emt 00:00:04]}
Kd6 {[%clk 00:00:10]} {[%emt 00:00:01]} 42. Rg7 {[%clk 00:07:08]} {[%emt
00:00:03]} Nb6 {[%clk 00:00:06]} {[%emt 00:00:10]} 43. Rxg6+ {[%clk 00:07:09]}
{[%emt 00:00:03]} Kc7 {[%clk 00:00:07]} {[%emt 00:00:04]} 44. a7 {[%clk
00:07:10]} {[%emt 00:00:04]} Kb7 {[%clk 00:00:06]} {[%emt 00:00:07]} 45. Rxb6+
{[%clk 00:07:08]} {[%emt 00:00:06]} Kxa7 {[%clk 00:00:08]} {[%emt 00:00:04]} 46.
Rh6 {[%clk 00:07:11]} {[%emt 00:00:01]} Kb7 {[%clk 00:00:11]} {[%emt 00:00:02]}
47. Rxh5 {[%clk 00:07:15]} {[%emt 00:00:02]} Kc7 {[%clk 00:00:16]} 48. Rxf5
{[%clk 00:07:18]} {[%emt 00:00:02]} Kd7 {[%clk 00:00:20]} 49. g4 {[%clk
00:07:21]} {[%emt 00:00:01]} Ke7 {[%clk 00:00:24]} 50. g5 {[%clk 00:07:25]}
{[%emt 00:00:02]} Ke6 {[%clk 00:00:28]} {[%emt 00:00:01]} 51. Rf6+ {[%clk
00:07:30]} Ke7 {[%clk 00:00:33]} 52. f4 {[%clk 00:07:33]} {[%emt 00:00:02]} Ke8
{[%clk 00:00:35]} {[%emt 00:00:03]} 53. f5 {[%clk 00:07:36]} {[%emt 00:00:01]}
Ke7 {[%clk 00:00:39]} 54. g4 {[%clk 00:07:39]} {[%emt 00:00:03]} Ke8 {[%clk
00:00:43]} 55. g6 {[%clk 00:07:43]} Ke7 {[%clk 00:00:48]} {[%emt 00:00:03]} 56.
Rf7+ {[%clk 00:07:47]} {[%emt 00:00:01]} Ke8 {[%clk 00:00:52]} 57. f6 {[%clk
00:07:51]} {[%emt 00:00:02]} Kd8 {[%clk 00:00:56]} {[%emt 00:00:01]} 58. g7
{[%clk 00:07:55]} {[%emt 00:00:01]} Ke8 {[%clk 00:00:58]} {[%emt 00:00:03]} 1-0

[Event "MCR rapid mládeže 2023 U16"]
[Site "Harachov, Czech Republic"]
[Date "2023.09.09"]
[Round "5.33"]
[White "Vorlik, Jachym"]
[Black "Bartak, Tobias"]
[Result "0-1"]
[TimeControl "20min+5s/move"]
[WhiteElo "1210"]
[BlackElo "1259"]

1. e4 {[%clk 00:20:06]} {[%emt 00:00:03]} c5 {[%clk 00:20:00]} {[%emt
00:00:10]} 2. Nf3 {[%clk 00:20:03]} {[%emt 00:00:08]} Nc6 {[%clk 00:20:01]}
{[%emt 00:00:05]} 3. d4 {[%clk 00:20:01]} {[%emt 00:00:07]} cxd4 {[%clk
00:20:01]} {[%emt 00:00:05]} 4. Nxd4 {[%clk 00:20:03]} {[%emt 00:00:03]} g6
{[%clk 00:20:01]} {[%emt 00:00:04]} 5. Be3 {[%clk 00:19:55]} {[%emt 00:00:13]}
Bg7 {[%clk 00:19:59]} {[%emt 00:00:06]} 6. Nc3 {[%clk 00:19:47]} {[%emt
00:00:14]} Nf6 {[%clk 00:19:49]} {[%emt 00:00:15]} 7. Be2 {[%clk 00:19:34]}
{[%emt 00:00:17]} O-O {[%clk 00:19:32]} {[%emt 00:00:23]} 8. O-O {[%clk
00:19:32]} {[%emt 00:00:07]} d6 {[%clk 00:19:07]} {[%emt 00:00:29]} 9. f3
{[%clk 00:19:07]} {[%emt 00:00:32]} a6 {[%clk 00:18:38]} {[%emt 00:00:34]} 10.
Bc4 {[%clk 00:18:46]} {[%emt 00:00:26]} e5 {[%clk 00:18:17]} {[%emt 00:00:25]}
11. Nde2 {[%clk 00:18:11]} {[%emt 00:00:40]} Qc7 {[%clk 00:17:23]} {[%emt
00:00:58]} 12. Nd5 {[%clk 00:17:47]} {[%emt 00:00:30]} Nxd5 {[%clk 00:17:14]}
{[%emt 00:00:14]} 13. Bxd5 {[%clk 00:17:34]} {[%emt 00:00:18]} Bd7 {[%clk
00:16:26]} {[%emt 00:00:53]} 14. Qd2 {[%clk 00:17:11]} {[%emt 00:00:28]} Ne7
{[%clk 00:15:12]} {[%emt 00:01:20]} 15. c4 {[%clk 00:16:28]} {[%emt 00:00:48]}
Bc6 {[%clk 00:14:33]} {[%emt 00:00:43]} 16. Nc3 {[%clk 00:16:09]} {[%emt
00:00:25]} Nxd5 {[%clk 00:14:12]} {[%emt 00:00:26]} 17. Nxd5 {[%clk 00:15:29]}
{[%emt 00:00:44]} Bxd5 {[%clk 00:14:04]} {[%emt 00:00:14]} 18. cxd5 {[%clk
00:15:29]} {[%emt 00:00:05]} Qd7 {[%clk 00:13:57]} {[%emt 00:00:11]} 19. Rac1
{[%clk 00:15:01]} {[%emt 00:00:33]} f5 {[%clk 00:13:16]} {[%emt 00:00:46]} 20.
Bb6 {[%clk 00:14:13]} {[%emt 00:00:53]} Rac8 {[%clk 00:11:55]} {[%emt
00:01:27]} 21. Rc3 {[%clk 00:12:52]} {[%emt 00:01:23]} Rxc3 {[%clk 00:11:09]}
{[%emt 00:00:53]} 22. bxc3 {[%clk 00:12:49]} {[%emt 00:00:06]} fxe4 {[%clk
00:11:11]} {[%emt 00:00:04]} 23. c4 {[%clk 00:11:57]} {[%emt 00:00:58]} exf3
{[%clk 00:10:58]} {[%emt 00:00:19]} 24. Rxf3 {[%clk 00:11:56]} {[%emt
00:00:06]} Rxf3 {[%clk 00:10:51]} {[%emt 00:00:12]} 25. gxf3 {[%clk 00:11:59]}
{[%emt 00:00:02]} e4 {[%clk 00:10:48]} {[%emt 00:00:08]} 26. fxe4 {[%clk
00:11:33]} {[%emt 00:00:39]} Qg4+ 27. Qg2 {[%emt 00:00:10]} Qd1+ {[%clk
00:10:41]} {[%emt 00:00:03]} 28. Qf1 {[%clk 00:11:27]} {[%emt 00:00:09]} Bd4+
{[%clk 00:10:45]} {[%emt 00:00:03]} 29. Bxd4 {[%clk 00:11:12]} {[%emt
00:00:21]} Qxd4+ {[%emt 00:00:21]} 30. Qf2 {[%emt 00:00:05]} Qxc4 {[%clk
00:10:28]} {[%emt 00:00:23]} 31. Qf6 {[%clk 00:10:08]} {[%emt 00:00:48]} Qc1+
{[%clk 00:10:05]} {[%emt 00:00:31]} 32. Kg2 {[%clk 00:09:48]} {[%emt 00:00:21]}
Qd2+ {[%emt 00:00:20]} 33. Kg3 {[%clk 00:09:34]} {[%emt 00:00:04]} Qe3+ {[%clk
00:10:00]} {[%emt 00:00:13]} 34. Qf3 {[%clk 00:09:17]} {[%emt 00:00:22]} Qxf3+
{[%clk 00:09:50]} {[%emt 00:00:15]} 35. Kxf3 {[%clk 00:09:20]} {[%emt
00:00:01]} Kf7 {[%clk 00:09:52]} {[%emt 00:00:04]} 36. Kg4 {[%clk 00:09:12]}
{[%emt 00:00:11]} b5 {[%emt 00:00:11]} 37. Kg5 {[%clk 00:09:10]} {[%emt
00:00:06]} a5 {[%clk 00:09:44]} {[%emt 00:00:10]} 38. Kf4 {[%clk 00:08:47]}
{[%emt 00:00:27]} Kf6 {[%clk 00:09:40]} {[%emt 00:00:10]} 39. e5+ {[%clk
00:08:25]} {[%emt 00:00:27]} dxe5+ {[%clk 00:09:25]} {[%emt 00:00:19]} 40. Ke4
{[%clk 00:08:29]} {[%emt 00:00:01]} b4 {[%clk 00:09:26]} {[%emt 00:00:05]} 41.
d6 {[%clk 00:08:30]} {[%emt 00:00:03]} Ke6 {[%clk 00:09:30]} {[%emt 00:00:01]}
42. d7 {[%clk 00:08:34]} Kxd7 {[%clk 00:09:35]} {[%emt 00:00:01]} 43. Kxe5
{[%clk 00:08:37]} {[%emt 00:00:02]} Kc6 {[%clk 00:09:38]} {[%emt 00:00:01]} 44.
Kd4 {[%clk 00:08:40]} {[%emt 00:00:01]} Kb5 {[%clk 00:09:42]} {[%emt 00:00:01]}
45. Kd3 {[%clk 00:08:44]} {[%emt 00:00:01]} Ka4 {[%clk 00:09:45]} {[%emt
00:00:03]} 46. Kc2 {[%clk 00:08:45]} {[%emt 00:00:02]} Ka3 {[%clk 00:09:48]}
{[%emt 00:00:03]} 47. Kb1 {[%clk 00:08:48]} {[%emt 00:00:01]} h5 {[%clk
00:09:51]} {[%emt 00:00:03]} 48. h4 {[%clk 00:08:19]} {[%emt 00:00:34]} Ka4
{[%clk 00:09:37]} {[%emt 00:00:19]} 49. Kb2 {[%clk 00:08:18]} {[%emt 00:00:06]}
Kb5 {[%clk 00:09:39]} {[%emt 00:00:03]} 50. Kb3 {[%clk 00:08:14]} {[%emt
00:00:10]} a4+ {[%clk 00:09:41]} {[%emt 00:00:03]} 51. Kc2 {[%clk 00:08:17]}
{[%emt 00:00:01]} Kc4 {[%clk 00:09:31]} {[%emt 00:00:15]} 52. Kb2 {[%clk
00:08:10]} {[%emt 00:00:12]} b3 {[%clk 00:09:34]} {[%emt 00:00:02]} 53. Kb1
{[%clk 00:06:42]} {[%emt 00:01:33]} bxa2+ {[%clk 00:09:36]} {[%emt 00:00:04]}
54. Kxa2 {[%clk 00:06:44]} {[%emt 00:00:02]} Kd4 {[%clk 00:09:40]} 55. Ka3
{[%clk 00:06:48]} {[%emt 00:00:03]} Ke4 {[%clk 00:09:44]} {[%emt 00:00:01]} 56.
Kxa4 {[%clk 00:06:52]} {[%emt 00:00:01]} Kf4 {[%clk 00:09:48]} {[%emt
00:00:01]} 57. Kb3 {[%clk 00:06:55]} {[%emt 00:00:01]} Kg4 {[%clk 00:09:47]}
{[%emt 00:00:06]} 58. Kc2 {[%clk 00:06:59]} {[%emt 00:00:02]} Kxh4 {[%clk
00:09:51]} {[%emt 00:00:01]} 59. Kd2 {[%clk 00:07:03]} {[%emt 00:00:01]} Kg3
{[%clk 00:09:55]} {[%emt 00:00:01]} 60. Ke1 {[%clk 00:07:06]} {[%emt 00:00:01]}
Kg2 {[%clk 00:09:58]} {[%emt 00:00:02]} 61. Ke2 {[%clk 00:07:10]} {[%emt
00:00:02]} h4 {[%clk 00:10:02]} {[%emt 00:00:01]} 62. Ke1 {[%clk 00:07:12]}
{[%emt 00:00:02]} h3 {[%clk 00:10:05]} {[%emt 00:00:03]} 63. Ke2 {[%clk
00:07:16]} {[%emt 00:00:01]} h2 {[%clk 00:10:09]} {[%emt 00:00:01]} 64. Ke1
{[%clk 00:07:20]} {[%emt 00:00:01]} h1=Q+ {[%clk 00:10:11]} {[%emt 00:00:02]}
65. Ke2 {[%clk 00:07:23]} {[%emt 00:00:02]} Qf1+ {[%clk 00:10:14]} {[%emt
00:00:02]} 66. Ke3 {[%clk 00:07:27]} {[%emt 00:00:01]} Qf3+ {[%clk 00:10:17]}
{[%emt 00:00:02]} 67. Kd4 {[%clk 00:07:30]} {[%emt 00:00:02]} Qe2 {[%clk
00:10:21]} {[%emt 00:00:01]} 68. Kd5 {[%clk 00:07:34]} {[%emt 00:00:01]} Kf3
{[%clk 00:10:24]} {[%emt 00:00:03]} 69. Kd4 {[%clk 00:07:37]} {[%emt 00:00:01]}
Qe4+ {[%clk 00:10:27]} {[%emt 00:00:02]} 70. Kc5 {[%clk 00:07:41]} {[%emt
00:00:01]} Qd3 {[%clk 00:10:31]} {[%emt 00:00:01]} 71. Kb4 {[%clk 00:07:44]}
{[%emt 00:00:02]} Qc2 {[%clk 00:10:35]} {[%emt 00:00:01]} 72. Kb5 {[%clk
00:07:48]} {[%emt 00:00:01]} Ke4 {[%clk 00:10:38]} {[%emt 00:00:02]} 73. Kb4
{[%clk 00:07:52]} {[%emt 00:00:01]} Kd5 {[%clk 00:10:39]} {[%emt 00:00:04]} 74.
Kb5 {[%clk 00:07:55]} {[%emt 00:00:02]} Qc5+ {[%clk 00:10:42]} {[%emt
00:00:02]} 75. Ka4 {[%clk 00:07:58]} {[%emt 00:00:01]} Qb6 {[%clk 00:10:46]}
{[%emt 00:00:02]} 76. Ka3 {[%clk 00:08:02]} {[%emt 00:00:01]} Kc4 {[%clk
00:10:50]} {[%emt 00:00:02]} 77. Ka2 {[%clk 00:08:06]} Kc3 {[%clk 00:10:52]}
{[%emt 00:00:03]} 78. Ka1 {[%clk 00:08:10]} Qa5+ {[%clk 00:10:52]} {[%emt
00:00:07]} 79. Kb1 {[%clk 00:08:10]} {[%emt 00:00:04]} Qb4+ {[%clk 00:10:56]}
80. Kc1 {[%clk 00:08:12]} {[%emt 00:00:03]} Qb2+ {[%clk 00:11:00]} {[%emt
00:00:01]} 81. Kd1 {[%clk 00:08:16]} {[%emt 00:00:01]} Qd2# {[%clk 00:11:04]}
{[%emt 00:00:02]} 0-1

[Event "MCR rapid mládeže 2023 U16"]
[Site "Harachov, Czech Republic"]
[Date "2023.09.09"]
[Round "5.34"]
[White "Zeman, Jonas"]
[Black "Moravec, Rene"]
[Result "0-1"]
[TimeControl "20min+5s/move"]
[WhiteElo "1130"]
[BlackElo "1165"]

1. e4 {[%clk 00:20:07]} {[%emt 00:00:02]} c5 {[%clk 00:20:08]} {[%emt
00:00:03]} 2. Nf3 {[%clk 00:20:09]} {[%emt 00:00:03]} Nc6 {[%clk 00:20:11]}
{[%emt 00:00:01]} 3. d4 {[%clk 00:20:12]} {[%emt 00:00:03]} cxd4 {[%clk
00:20:14]} {[%emt 00:00:02]} 4. Nxd4 {[%clk 00:20:14]} {[%emt 00:00:03]} g6
{[%clk 00:20:17]} {[%emt 00:00:02]} 5. Nc3 {[%clk 00:20:09]} {[%emt 00:00:09]}
Bg7 {[%clk 00:20:20]} {[%emt 00:00:02]} 6. Be3 {[%clk 00:20:09]} {[%emt
00:00:05]} Nf6 {[%clk 00:20:22]} {[%emt 00:00:03]} 7. Be2 {[%clk 00:20:08]}
{[%emt 00:00:07]} d6 {[%clk 00:20:20]} {[%emt 00:00:07]} 8. Qd2 {[%clk
00:19:56]} {[%emt 00:00:16]} O-O {[%clk 00:20:22]} {[%emt 00:00:04]} 9. O-O-O
{[%clk 00:19:57]} {[%emt 00:00:03]} a6 {[%clk 00:20:25]} {[%emt 00:00:04]} 10.
f3 {[%clk 00:19:54]} {[%emt 00:00:07]} b5 {[%clk 00:20:26]} {[%emt 00:00:04]}
11. h4 {[%clk 00:19:14]} {[%emt 00:00:44]} b4 {[%clk 00:20:21]} {[%emt
00:00:11]} 12. Nd5 {[%clk 00:18:38]} {[%emt 00:00:41]} Ne5 {[%clk 00:19:52]}
{[%emt 00:00:34]} 13. h5 {[%clk 00:18:09]} {[%emt 00:00:34]} Nxh5 {[%clk
00:19:09]} {[%emt 00:00:47]} 14. Rxh5 {[%clk 00:17:57]} {[%emt 00:00:17]} gxh5
{[%clk 00:19:10]} {[%emt 00:00:04]} 15. g4 {[%clk 00:17:11]} {[%emt 00:00:51]}
hxg4 {[%clk 00:19:07]} {[%emt 00:00:09]} 16. fxg4 {[%clk 00:17:03]} {[%emt
00:00:12]} Ng6 {[%clk 00:18:40]} {[%emt 00:00:32]} 17. Bh6 {[%clk 00:14:28]}
{[%emt 00:02:39]} e6 {[%clk 00:16:51]} {[%emt 00:01:55]} 18. Bg5 {[%clk
00:12:19]} {[%emt 00:02:14]} f6 {[%clk 00:15:21]} {[%emt 00:01:36]} 19. Nf4
{[%clk 00:08:16]} {[%emt 00:04:08]} Nxf4 {[%clk 00:13:55]} {[%emt 00:01:31]} 20.
Bxf4 {[%clk 00:07:30]} {[%emt 00:00:50]} e5 {[%clk 00:13:56]} {[%emt 00:00:04]}
21. Bc4+ {[%clk 00:06:46]} {[%emt 00:00:49]} Kh8 {[%clk 00:13:14]} {[%emt
00:00:48]} 22. Bh6 {[%clk 00:04:36]} {[%emt 00:02:15]} Qe7 {[%clk 00:10:56]}
{[%emt 00:02:22]} 23. Bd5 {[%clk 00:03:47]} {[%emt 00:00:54]} Bd7 {[%clk
00:04:51]} {[%emt 00:06:11]} 24. Bxa8 {[%clk 00:03:02]} {[%emt 00:00:50]} Rxa8
{[%clk 00:04:22]} {[%emt 00:00:34]} 25. Nf5 {[%clk 00:02:41]} {[%emt 00:00:25]}
Bxf5 {[%clk 00:04:14]} {[%emt 00:00:14]} 26. gxf5 {[%clk 00:02:37]} {[%emt
00:00:08]} Rc8 {[%clk 00:03:47]} {[%emt 00:00:33]} 27. Bxg7+ {[%clk 00:01:56]}
{[%emt 00:00:45]} Qxg7 {[%clk 00:03:41]} {[%emt 00:00:11]} 28. Qxd6 {[%clk
00:01:46]} {[%emt 00:00:15]} Qc7 {[%clk 00:01:38]} {[%emt 00:02:07]} 29. Qxf6+
{[%clk 00:01:26]} {[%emt 00:00:25]} Qg7 {[%clk 00:01:38]} {[%emt 00:00:06]} 30.
Rd8+ {[%clk 00:00:59]} {[%emt 00:00:32]} Rxd8 {[%clk 00:01:41]} {[%emt
00:00:03]} 31. Qxd8+ {[%clk 00:01:02]} {[%emt 00:00:02]} Qg8 {[%clk 00:01:45]}
32. Qxg8+ {[%clk 00:01:01]} {[%emt 00:00:06]} Kxg8 {[%clk 00:01:49]} {[%emt
00:00:01]} 33. Kd2 {[%clk 00:01:05]} {[%emt 00:00:02]} Kf7 {[%clk 00:01:53]}
{[%emt 00:00:01]} 34. Ke3 {[%clk 00:01:08]} {[%emt 00:00:02]} Kf6 {[%clk
00:01:58]} {[%emt 00:00:01]} 35. Kf3 {[%clk 00:01:10]} {[%emt 00:00:02]} a5
{[%clk 00:02:01]} {[%emt 00:00:02]} 36. Kg4 {[%clk 00:01:10]} {[%emt 00:00:04]}
a4 {[%clk 00:02:04]} {[%emt 00:00:02]} 37. Kh5 {[%clk 00:01:06]} {[%emt
00:00:09]} Kf7 {[%clk 00:02:03]} {[%emt 00:00:07]} 38. c3 {[%clk 00:00:59]}
{[%emt 00:00:11]} a3 {[%clk 00:01:59]} {[%emt 00:00:10]} 39. bxa3 {[%clk
00:00:09]} {[%emt 00:00:54]} bxc3 {[%clk 00:02:03]} {[%emt 00:00:01]} 40. a4
{[%clk 00:00:10]} {[%emt 00:00:04]} c2 41. a5 {[%emt 00:00:01]} c1=Q {[%clk
00:02:05]} {[%emt 00:00:03]} 42. a6 {[%clk 00:00:13]} {[%emt 00:00:02]} Qc6
{[%clk 00:02:05]} {[%emt 00:00:05]} 43. a7 {[%clk 00:00:13]} {[%emt 00:00:05]}
Qb7 {[%clk 00:02:08]} {[%emt 00:00:01]} 44. Kh6 {[%clk 00:00:13]} {[%emt
00:00:05]} Qxa7 {[%clk 00:02:08]} {[%emt 00:00:05]} 45. Kxh7 {[%clk 00:00:16]}
{[%emt 00:00:02]} Kf6+ {[%clk 00:02:07]} {[%emt 00:00:06]} 0-1